fUST/lending_fUST_20250228
["ID","MTS","AMOUNT","RATE_DAILY","PERIOD"]
[354777587,1740685839648,-500.0,0.00049589,120]
[354777588,1740685839657,-511.6,0.00049589,120]
[354777590,1740685839666,-151.0,0.00049589,120]
[354777591,1740685839675,-194.20594,0.00049589,120]
[354777593,1740685839684,-500.0,0.00049589,120]
[354777594,1740685839694,-500.0,0.00049589,120]
[354777595,1740685839703,-500.0,0.00049589,120]
[354777596,1740685839712,-500.0,0.00049589,120]
[354777597,1740685839721,-500.0,0.00049589,2]
[354777598,1740685839731,-500.0,0.00049589,120]
[354777599,1740685839740,-500.0,0.00049589,120]
[354777600,1740685839749,-766.33,0.00049589,120]
[354777601,1740685839760,-500.0,0.00049589,120]
[354777602,1740685839769,-500.0,0.00049589,120]
[354777603,1740685839779,-500.0,0.00049589,120]
[354777604,1740685839788,-500.0,0.00049589,120]
[354777605,1740685839797,-500.0,0.00049589,120]
[354777606,1740685839807,-528.66,0.00049589,120]
[354777607,1740685839816,-500.0,0.00049589,120]
[354777608,1740685839825,-543.06416976,0.00049589,120]
[354777609,1740685839834,-601.67,0.00049589,120]
[354777610,1740685839844,-545.4,0.00049589,120]
[354777611,1740685839853,-500.0,0.00049589,120]
[354777612,1740685839862,-500.0,0.00049589,120]
[354777613,1740685839871,-500.0,0.00049589,120]
[354777614,1740685839880,-165.874435,0.00049589,120]
[354777615,1740685839890,-500.0,0.00049589,120]
[354777616,1740685839899,-500.0,0.00049589,120]
[354777617,1740685839909,-151.0,0.00049589,120]
[354777618,1740685839918,-151.0,0.00049589,120]
[354777619,1740685839927,-151.0,0.00049589,120]
[354777620,1740685839936,-500.0,0.00049589,120]
[354777621,1740685839945,-500.0,0.00049589,120]
[354777622,1740685839955,-500.0,0.00049589,120]
[354777624,1740685839964,-967.01,0.00049589,120]
[354777625,1740685839973,-500.0,0.00049589,120]
[354777626,1740685839983,-500.0,0.00049589,120]
[354777627,1740685839992,-500.0,0.00049589,120]
[354777628,1740685840002,-500.0,0.00049589,120]
[354777629,1740685840011,-500.0,0.00049589,120]
[354777630,1740685840020,-500.0,0.00049589,120]
[354777631,1740685840029,-685.66,0.00049589,120]
[354777632,1740685840038,-500.0,0.00049589,120]
[354777633,1740685840047,-500.0,0.00049589,120]
[354777634,1740685840056,-676.91,0.00049589,120]
[354777635,1740685840065,-500.0,0.00049589,120]
[354777636,1740685840074,-3384.69,0.00049589,120]
[354777637,1740685840084,-500.0,0.00049589,120]
[354777638,1740685840093,-500.0,0.00049589,120]
[354777639,1740685840102,-214.65216749,0.00049589,120]
[354777640,1740685840111,-500.0,0.00049589,120]
[354777641,1740685840120,-1068.99,0.00049589,120]
[354777642,1740685840129,-412.40282187,0.00049589,120]
[354777643,1740685840138,-500.0,0.00049589,120]
[354777644,1740685840147,-500.0,0.00049589,120]
[354777645,1740685840155,-500.0,0.00049589,120]
[354777646,1740685840166,-500.0,0.00049589,120]
[354777647,1740685840175,-899.05,0.00049589,120]
[354777648,1740685840184,-10845.99,0.00049589,120]
[354777649,1740685840193,-500.0,0.00049589,120]
[354777650,1740685840202,-500.0,0.00049589,120]
[354777651,1740685840211,-500.0,0.00049589,120]
[354777652,1740685840221,-500.0,0.00049589,120]
[354777653,1740685840230,-500.0,0.00049589,120]
[354777654,1740685840240,-604.6,0.00049589,120]
[354777655,1740685840252,-500.0,0.00049589,120]
[354777656,1740685840263,-500.0,0.00049589,120]
[354777657,1740685840274,-500.0,0.00049589,120]
[354777658,1740685840283,-500.0,0.00049589,120]
[354777660,1740685840292,-1460.97,0.00049589,120]
[354777662,1740685840303,-500.0,0.00049589,120]
[354777664,1740685840312,-500.0,0.00049589,120]
[354777665,1740685840321,-906.67,0.00049589,120]
[354777666,1740685840331,-500.0,0.00049589,120]
[354777667,1740685840341,-500.0,0.00049589,120]
[354777669,1740685840352,-874.77,0.00049589,120]
[354777670,1740685840362,-458.77841142,0.00049589,120]
[354777671,1740685840372,-500.0,0.00049589,120]
[354777672,1740685840382,-500.0,0.00049589,120]
[354777673,1740685840391,-500.0,0.00049589,120]
[354777674,1740685840400,-9146.17,0.00049589,6]
[354777675,1740685840409,-500.0,0.00049589,120]
[354777676,1740685840418,-500.0,0.00049589,120]
[354777677,1740685840427,-500.0,0.00049589,120]
[354777678,1740685840436,-551.03,0.00049589,120]
[354777679,1740685840446,-943.80043767,0.00049589,120]
[354777754,1740685843016,-478.79999999,0.00049315,120]
[354777756,1740685843542,-493.56000001,0.00049315,120]
[354777757,1740685843554,-500.0,0.00049315,120]
[354777758,1740685843565,-500.0,0.00049315,120]
[354777759,1740685843576,-500.0,0.00049315,120]
[354777760,1740685843588,-151.0,0.00049315,120]
[354777761,1740685843599,-2665.01,0.0004939,10]
[354777762,1740685843612,-1509.18956233,0.00049589,120]
[354777763,1740685843627,-151.0,0.00049589,120]
[354777764,1740685843638,-500.0,0.00049589,120]
[354777765,1740685843649,-875.16,0.00049589,120]
[354777766,1740685843661,-500.0,0.00049589,120]
[354777767,1740685843672,-2346.79,0.00049589,120]
[354777768,1740685843684,-500.0,0.00049589,120]
[354777769,1740685843695,-1088.554519,0.00049589,120]
[354777770,1740685843706,-1088.554519,0.00049589,120]
[354777771,1740685843717,-1088.554519,0.00049589,120]
[354777772,1740685843730,-1088.554519,0.00049589,120]
[354777773,1740685843742,-1088.554519,0.00049589,120]
[354777774,1740685843754,-1088.554519,0.00049589,120]
[354777775,1740685843766,-713.69,0.00049589,120]
[354777776,1740685843777,-500.0,0.00049589,120]
[354777777,1740685843788,-500.0,0.00049589,120]
[354777778,1740685843799,-2847.46,0.00049589,120]
[354777779,1740685843810,-500.0,0.00049589,120]
[354777780,1740685843822,-151.0,0.00049589,120]
[354777781,1740685843835,-500.0,0.00049589,120]
[354777782,1740685843846,-291.35154,0.00049589,120]
[354777783,1740685843858,-500.0,0.00049589,120]
[354777784,1740685843870,-1019.41,0.00049589,120]
[354777785,1740685843881,-500.0,0.00049589,120]
[354777786,1740685843892,-500.0,0.00049589,120]
[354777787,1740685843902,-500.0,0.00049589,120]
[354777788,1740685843913,-6222.02,0.00049589,120]
[354777789,1740685843924,-5686.45,0.00049589,120]
[354777790,1740685843939,-500.0,0.00049589,120]
[354777791,1740685843950,-500.0,0.00049589,120]
[354777792,1740685843961,-170.16,0.00049589,120]
[354777793,1740685843973,-524.55,0.00049589,120]
[354777794,1740685843985,-6530.44,0.00049589,120]
[354777795,1740685843996,-1263.78,0.00049589,120]
[354777796,1740685844008,-1699.71,0.00049589,120]
[354777797,1740685844019,-500.0,0.00049589,120]
[354777798,1740685844029,-500.0,0.00049589,120]
[354777799,1740685844041,-500.0,0.00049589,120]
[354777800,1740685844052,-500.0,0.00049589,120]
[354777801,1740685844063,-500.0,0.00049589,120]
[354777802,1740685844075,-3322.36,0.00049589,120]
[354777803,1740685844086,-539.36,0.00049589,120]
[354777804,1740685844097,-500.0,0.00049589,120]
[354777805,1740685844108,-500.0,0.00049589,120]
[354777806,1740685844120,-606.98,0.00049589,120]
[354777807,1740685844131,-151.0,0.00049589,120]
[354777808,1740685844144,-151.0,0.00049589,120]
[354777809,1740685844156,-500.0,0.00049589,120]
[354777810,1740685844168,-151.0,0.00049589,120]
[354777811,1740685844179,-2063.97,0.00049589,120]
[354777812,1740685844192,-500.0,0.00049589,120]
[354777813,1740685844205,-151.0,0.00049589,120]
[354777814,1740685844216,-500.0,0.00049589,120]
[354777815,1740685844227,-151.0,0.00049589,120]
[354777816,1740685844238,-151.0,0.00049589,120]
[354777817,1740685844250,-585.15,0.00049589,120]
[354777819,1740685844265,-500.0,0.00049589,120]
[354777821,1740685844275,-151.0,0.00049589,120]
[354777822,1740685844288,-1406.16,0.00049589,120]
[354777823,1740685844298,-500.0,0.00049589,120]
[354777824,1740685844311,-48927.94,0.00049589,7]
[354777825,1740685844321,-500.0,0.00049589,120]
[354777826,1740685844333,-500.0,0.00049589,120]
[354777827,1740685844344,-500.0,0.00049589,120]
[354777828,1740685844354,-566.66,0.00049589,120]
[354777829,1740685844364,-500.0,0.00049589,120]
[354777830,1740685844375,-500.0,0.00049589,120]
[354777831,1740685844386,-1542.96,0.00049589,120]
[354777832,1740685844396,-500.0,0.00049589,120]
[354777833,1740685844406,-5695.27,0.00049589,120]
[354777834,1740685844417,-500.0,0.00049589,120]
[354777835,1740685844427,-500.0,0.00049589,120]
[354777836,1740685844438,-1820.73,0.00049589,120]
[354777837,1740685844449,-500.0,0.00049589,30]
[354777838,1740685844460,-500.0,0.00049589,120]
[354777839,1740685844470,-500.0,0.00049589,120]
[354777840,1740685844479,-553.75,0.00049589,120]
[354777841,1740685844490,-895.44,0.00049589,120]
[354777842,1740685844499,-500.0,0.00049589,120]
[354777843,1740685844511,-500.0,0.00049589,120]
[354777844,1740685844521,-972.36,0.00049589,120]
[354777845,1740685844643,-500.0,0.00049589,120]
[354777846,1740685844653,-500.0,0.00049589,120]
[354777847,1740685844663,-500.0,0.00049589,120]
[354777848,1740685844673,-5000.0,0.000496,120]
[354777849,1740685844682,-503.38375105,0.00049862,120]
[354777850,1740685844692,-500.0,0.00049863,120]
[354777851,1740685844702,-500.0,0.00049863,120]
[354777852,1740685844712,-500.0,0.00049863,120]
[354777853,1740685844721,-500.0,0.00049863,120]
[354777854,1740685844731,-500.0,0.00049863,120]
[354777855,1740685844740,-500.0,0.00049863,120]
[354777856,1740685844749,-500.0,0.00049863,120]
[354777857,1740685844760,-500.0,0.00049863,120]
[354777858,1740685844771,-500.0,0.00049863,120]
[354777859,1740685844780,-500.0,0.00049863,120]
[354777860,1740685844790,-646.51,0.00049863,120]
[354777861,1740685844799,-500.0,0.00049863,120]
[354777862,1740685844808,-500.0,0.00049863,120]
[354777863,1740685844818,-528.98,0.00049863,120]
[354777864,1740685844828,-500.0,0.00049863,120]
[354777865,1740685844837,-500.0,0.00049863,120]
[354777866,1740685844846,-500.0,0.00049863,120]
[354777867,1740685844856,-500.0,0.00049863,120]
[354777868,1740685844866,-500.0,0.00049863,120]
[354777869,1740685844875,-500.0,0.00049863,120]
[354777870,1740685844884,-546.87,0.00049863,120]
[354777871,1740685844894,-500.0,0.00049863,120]
[354777872,1740685844903,-544.26,0.00049863,120]
[354777873,1740685844912,-1136.94,0.00049863,120]
[354777874,1740685844922,-636.44102336,0.00049863,120]
[354777875,1740685844932,-665.31,0.00049863,120]
[354777876,1740685844941,-760.41,0.00049863,120]
[354777877,1740685844951,-1016.95,0.00049863,120]
[354777878,1740685844959,-500.0,0.00049863,120]
[354777879,1740685844969,-852.59,0.00049863,120]
[354777880,1740685844978,-500.0,0.00049863,120]
[354777881,1740685844987,-500.0,0.00049863,120]
[354777882,1740685844996,-500.0,0.00049863,120]
[354777883,1740685845006,-500.0,0.00049863,120]
[354777884,1740685845015,-500.0,0.00049863,120]
[354777885,1740685845024,-500.0,0.00049863,120]
[354777886,1740685845033,-767.12,0.00049863,120]
[354777887,1740685845045,-500.0,0.00049863,120]
[354777888,1740685845055,-500.0,0.00049863,120]
[354777889,1740685845064,-500.0,0.00049863,120]
[354777890,1740685845075,-500.0,0.00049863,120]
[354777891,1740685845084,-500.0,0.00049863,120]
[354777892,1740685845093,-500.0,0.00049863,120]
[354777893,1740685845103,-500.0,0.00049863,120]
[354777894,1740685845112,-500.0,0.00049863,120]
[354777895,1740685845122,-1135.57,0.00049863,120]
[354777896,1740685845131,-500.0,0.00049863,120]
[354777897,1740685845141,-511.6,0.00049863,120]
[354777898,1740685845151,-500.0,0.00049863,120]
[354777899,1740685845160,-500.0,0.00049863,120]
[354777900,1740685845170,-500.0,0.00049863,120]
[354777901,1740685845180,-500.0,0.00049863,120]
[354777902,1740685845190,-563.93,0.00049863,2]
[354777903,1740685845200,-500.0,0.00049863,120]
[354777904,1740685845210,-766.33,0.00049863,120]
[354777905,1740685845220,-500.0,0.00049863,120]
[354777906,1740685845230,-500.0,0.00049863,120]
[354777907,1740685845240,-500.0,0.00049863,120]
[354777908,1740685845249,-500.0,0.00049863,120]
[354777909,1740685845263,-500.0,0.00049863,120]
[354777910,1740685845273,-528.66,0.00049863,120]
[354777911,1740685845283,-388.41173715,0.00049863,120]
[354777912,1740685845295,-545.4,0.00049863,120]
[354777913,1740685845306,-500.0,0.00049863,120]
[354777914,1740685845315,-500.0,0.00049863,120]
[354777915,1740685845325,-500.0,0.00049863,120]
[354777916,1740685845335,-165.874435,0.00049863,120]
[354777917,1740685845345,-500.0,0.00049863,120]
[354777918,1740685845354,-165.874435,0.00049863,120]
[354777919,1740685845364,-500.0,0.00049863,120]
[354777920,1740685845373,-154.1828,0.00049863,120]
[354777921,1740685845383,-500.0,0.00049863,120]
[354777922,1740685845393,-597.65,0.00049863,120]
[354777923,1740685845402,-500.0,0.00049863,120]
[354777924,1740685845411,-967.01,0.00049863,120]
[354777925,1740685845420,-500.0,0.00049863,120]
[354777926,1740685845430,-500.0,0.00049863,120]
[354777927,1740685845439,-500.0,0.00049863,120]
[354777928,1740685845449,-500.0,0.00049863,120]
[354777929,1740685845458,-500.0,0.00049863,120]
[354777930,1740685845467,-500.0,0.00049863,120]
[354777931,1740685845477,-685.66,0.00049863,120]
[354777932,1740685845487,-500.0,0.00049863,120]
[354777933,1740685845495,-676.91,0.00049863,120]
[354777934,1740685845506,-500.0,0.00049863,120]
[354777935,1740685845515,-3384.69,0.00049863,120]
[354777936,1740685845524,-500.0,0.00049863,120]
[354777937,1740685845534,-500.0,0.00049863,120]
[354777938,1740685845544,-1068.99,0.00049863,120]
[354777939,1740685845553,-500.0,0.00049863,120]
[354777940,1740685845563,-500.0,0.00049863,120]
[354777941,1740685845572,-500.0,0.00049863,120]
[354777942,1740685845581,-899.05,0.00049863,120]
[354777943,1740685845590,-500.0,0.00049863,120]
[354777944,1740685845600,-500.0,0.00049863,120]
[354777946,1740685845610,-500.0,0.00049863,120]
[354777947,1740685845619,-604.6,0.00049863,120]
[354777948,1740685845628,-500.0,0.00049863,120]
[354777949,1740685845638,-500.0,0.00049863,120]
[354777950,1740685845647,-500.0,0.00049863,120]
[354777951,1740685845657,-500.0,0.00049863,120]
[354777952,1740685845666,-500.0,0.00049863,120]
[354777953,1740685845675,-1460.97,0.00049863,120]
[354777954,1740685845685,-500.0,0.00049863,120]
[354777955,1740685845696,-500.0,0.00049863,120]
[354777956,1740685845705,-906.67,0.00049863,120]
[354777957,1740685845714,-500.0,0.00049863,120]
[354777958,1740685845723,-500.0,0.00049863,120]
[354777959,1740685845732,-874.77,0.00049863,120]
[354777960,1740685845742,-500.0,0.00049863,120]
[354777961,1740685845751,-500.0,0.00049863,120]
[354777962,1740685845763,-500.0,0.00049863,120]
[354777963,1740685845772,-9146.17,0.00049863,6]
[354777964,1740685845782,-500.0,0.00049863,120]
[354777965,1740685845791,-500.0,0.00049863,120]
[354777966,1740685845800,-500.0,0.00049863,120]
[354777967,1740685845810,-551.03,0.00049863,120]
[354777968,1740685845819,-2452.99,0.00049863,120]
[354777969,1740685845828,-500.0,0.00049863,120]
[354777970,1740685845838,-875.16,0.00049863,120]
[354777972,1740685845848,-500.0,0.00049863,120]
[354777973,1740685845858,-2346.79,0.00049863,120]
[354777974,1740685845869,-500.0,0.00049863,120]
[354777975,1740685845878,-1088.554519,0.00049863,120]
[354777976,1740685845887,-1088.554519,0.00049863,120]
[354777977,1740685845897,-1088.554519,0.00049863,120]
[354777978,1740685845907,-1088.554519,0.00049863,120]
[354777979,1740685845917,-1088.554519,0.00049863,120]
[354777980,1740685845926,-1088.554519,0.00049863,120]
[354777981,1740685845935,-713.69,0.00049863,120]
[354777982,1740685845944,-500.0,0.00049863,120]
[354777983,1740685845954,-500.0,0.00049863,120]
[354777984,1740685845964,-2847.46,0.00049863,120]
[354777985,1740685845974,-500.0,0.00049863,120]
[354777986,1740685845983,-500.0,0.00049863,120]
[354777987,1740685845992,-500.0,0.00049863,120]
[354777988,1740685846002,-1019.41,0.00049863,120]
[354777989,1740685846013,-500.0,0.00049863,120]
[354777990,1740685846023,-500.0,0.00049863,120]
[354777992,1740685846032,-500.0,0.00049863,120]
[354777993,1740685846041,-6222.02,0.00049863,120]
[354777994,1740685846051,-5686.45,0.00049863,120]
[354777995,1740685846060,-500.0,0.00049863,120]
[354777996,1740685846073,-500.0,0.00049863,120]
[354777997,1740685846083,-524.55,0.00049863,120]
[354777998,1740685846094,-6530.44,0.00049863,120]
[354777999,1740685846104,-1263.78,0.00049863,120]
[354778000,1740685846114,-1699.71,0.00049863,120]
[354778001,1740685846124,-500.0,0.00049863,120]
[354778002,1740685846134,-219.49716529,0.00049863,120]
[354778003,1740685846145,-500.0,0.00049863,120]
[354778004,1740685846155,-400.250958,0.00049863,120]
[354778005,1740685846166,-3322.36,0.00049863,120]
[354778006,1740685846177,-539.36,0.00049863,120]
[354778007,1740685846187,-500.0,0.00049863,120]
[354778008,1740685846198,-606.98,0.00049863,120]
[354778009,1740685846207,-500.0,0.00049863,120]
[354778010,1740685846217,-151.0,0.00049863,120]
[354778011,1740685846227,-2063.97,0.00049863,120]
[354778012,1740685846237,-500.0,0.00049863,120]
[354778013,1740685846246,-151.0,0.00049863,120]
[354778014,1740685846257,-151.0,0.00049863,120]
[354778015,1740685846267,-500.0,0.00049863,120]
[354778016,1740685846277,-585.15,0.00049863,120]
[354778017,1740685846289,-151.0,0.00049863,120]
[354778018,1740685846299,-220.277317,0.00049863,120]
[354778019,1740685846308,-500.0,0.00049863,120]
[354778020,1740685846318,-1406.16,0.00049863,120]
[354778021,1740685846328,-500.0,0.00049863,120]
[354778022,1740685846337,-48927.94,0.00049863,7]
[354778023,1740685846347,-500.0,0.00049863,120]
[354778024,1740685846357,-500.0,0.00049863,120]
[354778025,1740685846367,-500.0,0.00049863,120]
[354778026,1740685846378,-566.66,0.00049863,120]
[354778027,1740685846387,-500.0,0.00049863,120]
[354778028,1740685846397,-500.0,0.00049863,120]
[354778029,1740685846406,-1542.96,0.00049863,120]
[354778030,1740685846416,-500.0,0.00049863,120]
[354778031,1740685846426,-5695.27,0.00049863,120]
[354778032,1740685846435,-500.0,0.00049863,120]
[354778033,1740685846444,-500.0,0.00049863,120]
[354778034,1740685846454,-1820.73,0.00049863,120]
[354778035,1740685846463,-500.0,0.00049863,30]
[354778036,1740685846472,-500.0,0.00049863,120]
[354778037,1740685846481,-500.0,0.00049863,120]
[354778038,1740685846491,-553.75,0.00049863,120]
[354778039,1740685846500,-895.44,0.00049863,120]
[354778040,1740685846511,-500.0,0.00049863,120]
[354778041,1740685846520,-500.0,0.00049863,120]
[354778043,1740685846559,-972.36,0.00049863,120]
[354778044,1740685846568,-500.0,0.00049863,120]
[354778045,1740685846578,-500.0,0.00049863,120]
[354778046,1740685846587,-10859.10726291,0.000499,30]
[354778047,1740685846596,-357.66,0.000499,30]
[354778049,1740685846606,-4847.98,0.000499,30]
[354778051,1740685846616,-937.0,0.000499,30]
[354778053,1740685846625,-371.73804907,0.000499,30]
[354778054,1740685846635,-315.0,0.000499,30]
[354778056,1740685846644,-315.0,0.000499,30]
[354778058,1740685846653,-254.36,0.000499,120]
[354778059,1740685846662,-197.8417473,0.000499,120]
[354778060,1740685846671,-197.8417473,0.000499,120]
[354778061,1740685846681,-289.89,0.000499,120]
[354778062,1740685846689,-169.10289132,0.000499,120]
[354778063,1740685846698,-169.10289132,0.000499,120]
[354778064,1740685846707,-169.10289132,0.000499,120]
[354778065,1740685846716,-196.27,0.000499,120]
[354778066,1740685846725,-152.65711493,0.000499,120]
[354778067,1740685846734,-152.65711493,0.000499,120]
[354778068,1740685846743,-315.0,0.000499,30]
[354778069,1740685846753,-315.0,0.000499,30]
[354778070,1740685846763,-500.0,0.00049973,10]
[354778071,1740685846773,-500.0,0.00049973,10]
[354778072,1740685846782,-500.0,0.00049973,10]
[354778073,1740685846791,-500.0,0.00049973,10]
[354778074,1740685846800,-500.0,0.00049973,10]
[354778075,1740685846809,-500.0,0.00049973,10]
[354778076,1740685846820,-500.0,0.00049973,10]
[354778077,1740685846830,-500.446861,0.00049973,10]
[354778078,1740685846841,-500.0,0.00049973,10]
[354778079,1740685846851,-500.0,0.00049973,10]
[354778080,1740685846861,-500.0,0.00049973,10]
[354778081,1740685846871,-500.0,0.00049973,10]
[354778082,1740685846882,-500.0,0.00049973,10]
[354778083,1740685846892,-500.0,0.00049973,10]
[354778084,1740685846902,-500.0,0.00049973,10]
[354778085,1740685846912,-500.0,0.00049973,10]
[354778086,1740685846921,-247.64631183,0.00049973,10]
[354778087,1740685846930,-500.0,0.00049973,7]
[354778088,1740685846939,-15471.74429508,0.0005,35]
[354778089,1740685846949,-51331.19291882,0.0005,35]
[354778090,1740685846958,-200.000001,0.0005,2]
[354778091,1740685846967,-333760.65007554,0.0005,120]
[354778092,1740685846977,-89711.22630843,0.0005,30]
[354778093,1740685846987,-6952.37177144,0.0005,120]
[354778094,1740685846996,-165.874435,0.0005,120]
[354778095,1740685847007,-165.874431,0.0005,120]
[354778096,1740685847016,-1088.554519,0.0005,120]
[354778097,1740685847025,-1088.554511,0.0005,120]
[354778098,1740685847034,-151.0,0.0005,120]
[354778099,1740685847043,-197.84,0.00050036,120]
[354778100,1740685847054,-169.1,0.00050036,120]
[354778101,1740685847063,-152.65,0.00050036,120]
[354778102,1740685847072,-500.0,0.00050136,120]
[354778103,1740685847083,-500.0,0.00050136,120]
[354778104,1740685847092,-500.0,0.00050136,120]
[354778105,1740685847102,-500.0,0.00050136,120]
[354778106,1740685847111,-500.0,0.00050136,120]
[354778107,1740685847120,-500.0,0.00050136,120]
[354778108,1740685847130,-500.0,0.00050136,120]
[354778109,1740685847139,-500.0,0.00050136,120]
[354778110,1740685847148,-500.0,0.00050136,120]
[354778111,1740685847157,-500.0,0.00050136,120]
[354778112,1740685847167,-500.0,0.00050136,120]
[354778113,1740685847176,-528.98,0.00050136,120]
[354778114,1740685847185,-500.0,0.00050136,120]
[354778115,1740685847194,-500.0,0.00050136,120]
[354778116,1740685847203,-500.0,0.00050136,120]
[354778117,1740685847212,-500.0,0.00050136,120]
[354778118,1740685847222,-500.0,0.00050136,120]
[354778119,1740685847231,-500.0,0.00050136,120]
[354778120,1740685847240,-546.87,0.00050136,120]
[354778121,1740685847250,-164.11,0.00050136,120]
[354778122,1740685847265,-544.26,0.00050136,120]
[354778123,1740685847275,-1136.94,0.00050136,120]
[354778124,1740685847288,-665.31,0.00050136,120]
[354778125,1740685847299,-760.41,0.00050136,120]
[354778126,1740685847310,-1016.95,0.00050136,120]
[354778127,1740685847321,-447.12151336,0.00050136,120]
[354778128,1740685847331,-852.59,0.00050136,120]
[354778129,1740685847341,-500.0,0.00050136,120]
[354778130,1740685847352,-500.0,0.00050136,120]
[354778131,1740685847363,-500.0,0.00050136,120]
[354778132,1740685847373,-500.0,0.00050136,120]
[354778133,1740685847383,-500.0,0.00050136,120]
[354778134,1740685847394,-500.0,0.00050136,120]
[354778135,1740685847403,-767.12,0.00050136,120]
[354778136,1740685847413,-500.0,0.00050136,120]
[354778137,1740685847424,-500.0,0.00050136,120]
[354778138,1740685847434,-500.0,0.00050136,120]
[354778139,1740685847445,-392.4501506,0.00050136,120]
[354778140,1740685847454,-500.0,0.00050136,120]
[354778141,1740685847463,-500.0,0.00050136,120]
[354778142,1740685847473,-500.0,0.00050136,120]
[354778143,1740685847483,-500.0,0.00050136,120]
[354778144,1740685847492,-1135.57,0.00050136,120]
[354778145,1740685847501,-500.0,0.00050136,120]
[354778146,1740685847512,-511.6,0.00050136,120]
[354778147,1740685847521,-363.44,0.00050136,120]
[354778148,1740685847531,-500.0,0.00050136,120]
[354778149,1740685847541,-500.0,0.00050136,120]
[354778150,1740685847552,-500.0,0.00050136,120]
[354778151,1740685847561,-766.33,0.00050136,120]
[354778152,1740685847571,-500.0,0.00050136,120]
[354778153,1740685847581,-500.0,0.00050136,120]
[354778154,1740685847590,-500.0,0.00050136,120]
[354778155,1740685847599,-500.0,0.00050136,120]
[354778156,1740685847608,-500.0,0.00050136,120]
[354778157,1740685847619,-528.66,0.00050136,120]
[354778158,1740685847630,-545.4,0.00050136,120]
[354778159,1740685847640,-296.73,0.00050136,120]
[354778160,1740685847650,-500.0,0.00050136,120]
[354778161,1740685847660,-500.0,0.00050136,120]
[354778162,1740685847669,-500.0,0.00050136,120]
[354778163,1740685847680,-503.39908834,0.00050136,120]
[354778164,1740685847690,-500.0,0.00050136,120]
[354778165,1740685847699,-500.0,0.00050136,120]
[354778166,1740685847709,-967.01,0.00050136,120]
[354778167,1740685847719,-500.0,0.00050136,120]
[354778168,1740685847730,-500.0,0.00050136,120]
[354778169,1740685847740,-500.0,0.00050136,120]
[354778170,1740685847750,-500.0,0.00050136,120]
[354778171,1740685847761,-500.0,0.00050136,120]
[354778172,1740685847771,-685.66,0.00050136,120]
[354778173,1740685847780,-500.0,0.00050136,120]
[354778174,1740685847790,-676.91,0.00050136,120]
[354778175,1740685847800,-500.0,0.00050136,120]
[354778176,1740685847809,-3384.69,0.00050136,120]
[354778177,1740685847819,-500.0,0.00050136,120]
[354778178,1740685847829,-500.0,0.00050136,120]
[354778179,1740685847839,-1068.99,0.00050136,120]